Workbook

Sheet Sheet1
A1: 19#和21#楼ALC条形板标准层数量及尺寸表 | J1: 15#楼ALC条形板标准层数量及尺寸表 | S1: 20#楼ALC条形板标准层数量及尺寸表
A2: 条形版编号 | B2: 跨度（m） | C2: 预制高度（m） | D2: 墙厚（m） | E2: 单个标准层所需数量 | F2: 单个构件体积（m3） | G2: 总预制层数 | H2: 总预制体积（m3） | J2: 条形版编号 | K2: 跨度（m） | L2: 预制高度（m） | M2: 墙厚（m） | N2: 单个标准层所需数量 | O2: 单个构件体积（m3） | P2: 总预制层数 | Q2: 总预制体积（m3） | S2: 条形版编号 | T2: 跨度（m） | U2: 预制高度（m） | V2: 墙厚（m） | W2: 单个标准层所需数量 | X2: 单个构件体积（m3） | Y2: 总预制层数 | Z2: 总预制体积（m3）
A3: QB1 | B3: 0.7 | C3: 2.5 | D3: 0.2 | E3: 1 | F3: =B3*C3*D3 -> 0.35 | G3: 28 | H3: =F3*G3 -> 9.80 | J3: QB1 | K3: 0.7 | L3: 2.5 | M3: 0.2 | N3: 1 | O3: =K3*L3*M3 -> 0.35 | P3: 12 | Q3: =O3*P3 -> 4.20 | S3: QB1 | T3: 4.1 | U3: 2.5 | V3: 0.2 | W3: 2 | X3: =T3*U3*V3 -> 2.05 | Y3: 14 | Z3: =X3*Y3 -> 28.70
A4: QB2 | B4: 2.5 | C4: 2.4 | D4: 0.2 | E4: 1 | F4: =B4*C4*D4 -> 1.20 | G4: 28 | H4: =F4*G4 -> 33.60 | J4: QB2 | K4: 2.5 | L4: 2.4 | M4: 0.2 | N4: 1 | O4: =K4*L4*M4 -> 1.20 | P4: 12 | Q4: =O4*P4 -> 14.40 | S4: QB2 | T4: 2.8 | U4: 2.5 | V4: 0.2 | W4: 2 | X4: =T4*U4*V4 -> 1.40 | Y4: 14 | Z4: =X4*Y4 -> 19.60
A5: QB3 | B5: 3.3 | C5: 2.45 | D5: 0.2 | E5: 1 | F5: 1.62 | G5: 28 | H5: 45.28 | J5: QB3 | K5: 3.3 | L5: 2.45 | M5: 0.2 | N5: 1 | O5: 1.62 | P5: 12 | Q5: 19.40 | S5: QB3 | T5: 5.3 | U5: 2.5 | V5: 0.2 | W5: 2 | X5: 2.65 | Y5: 14 | Z5: 37.10
A6: QB4 | B6: 3.8 | C6: 2.5 | D6: 0.2 | E6: 1 | F6: 1.90 | G6: 28 | H6: 53.20 | J6: QB4 | K6: 3.8 | L6: 2.5 | M6: 0.2 | N6: 1 | O6: 1.90 | P6: 12 | Q6: 22.80 | S6: QB4 | T6: 5 | U6: 2.4 | V6: 0.2 | W6: 2 | X6: 2.40 | Y6: 14 | Z6: 33.60
A7: QB5 | B7: 1.4 | C7: 2.76 | D7: 0.2 | E7: 1 | F7: 0.77 | G7: 28 | H7: 21.64 | J7: QB5 | K7: 1.4 | L7: 2.76 | M7: 0.2 | N7: 1 | O7: 0.77 | P7: 12 | Q7: 9.27 | S7: QB5 | T7: 1.65 | U7: 2.5 | V7: 0.2 | W7: 2 | X7: 0.83 | Y7: 14 | Z7: 11.55
A8: QB6 | B8: 1.65 | C8: 2.4 | D8: 0.2 | E8: 1 | F8: 0.79 | G8: 28 | H8: 22.18 | J8: QB6 | K8: 1.65 | L8: 2.4 | M8: 0.2 | N8: 1 | O8: 0.79 | P8: 12 | Q8: 9.50 | S8: QB6 | T8: 2.5 | U8: 2.5 | V8: 0.2 | W8: 2 | X8: 1.25 | Y8: 14 | Z8: 17.50
A9: QB7 | B9: 3.9 | C9: 2.5 | D9: 0.2 | E9: 2 | F9: 1.95 | G9: 28 | H9: 54.60 | J9: QB7 | K9: 3.9 | L9: 2.5 | M9: 0.2 | N9: 2 | O9: 1.95 | P9: 12 | Q9: 23.40 | S9: QB7 | T9: 0.6 | U9: 2.78 | V9: 0.2 | W9: 1 | X9: 0.33 | Y9: 14 | Z9: 4.67
A10: QB8 | B10: 2.8 | C10: 2.5 | D10: 0.2 | E10: 2 | F10: 1.40 | G10: 28 | H10: 39.20 | J10: QB8 | K10: 2.8 | L10: 2.5 | M10: 0.2 | N10: 2 | O10: 1.40 | P10: 12 | Q10: 16.80 | S10: QB8 | T10: 0.6 | U10: 2.5 | V10: 0.2 | W10: 2 | X10: 0.30 | Y10: 14 | Z10: 4.20
A11: QB9 | B11: 5.1 | C11: 2.5 | D11: 0.2 | E11: 2 | F11: 2.55 | G11: 28 | H11: 71.40 | J11: QB9 | K11: 5.1 | L11: 2.5 | M11: 0.2 | N11: 2 | O11: 2.55 | P11: 12 | Q11: 30.60 | S11: QB9 | T11: 1 | U11: 2.2 | V11: 0.2 | W11: 2 | X11: 0.44 | Y11: 14 | Z11: 6.16
A12: QB10 | B12: 4.8 | C12: 2.4 | D12: 0.2 | E12: 1 | F12: 2.30 | G12: 28 | H12: 64.51 | J12: QB10 | K12: 4.8 | L12: 2.4 | M12: 0.2 | N12: 1 | O12: 2.30 | P12: 12 | Q12: 27.65 | S12: QB10 | T12: 2.3 | U12: 2.5 | V12: 0.2 | W12: 2 | X12: 1.15 | Y12: 14 | Z12: 16.10
A13: QB11 | B13: 1.65 | C13: 2.5 | D13: 0.2 | E13: 1 | F13: 0.83 | G13: 28 | H13: 23.10 | J13: QB11 | K13: 1.65 | L13: 2.5 | M13: 0.2 | N13: 1 | O13: 0.83 | P13: 12 | Q13: 9.90 | S13: QB11 | T13: 2.8 | U13: 2.76 | V13: 0.1 | W13: 2 | X13: 0.77 | Y13: 14 | Z13: 10.82
A14: QB12 | B14: 2.5 | C14: 2.5 | D14: 0.2 | E14: 1 | F14: 1.25 | G14: 28 | H14: 35.00 | J14: QB12 | K14: 2.5 | L14: 2.5 | M14: 0.2 | N14: 1 | O14: 1.25 | P14: 12 | Q14: 15.00 | S14: QB12 | T14: 0.5 | U14: 2.5 | V14: 0.2 | W14: 2 | X14: 0.25 | Y14: 14 | Z14: 3.50
A15: QB13 | B15: 0.6 | C15: 2.78 | D15: 0.2 | E15: 2 | F15: 0.33 | G15: 28 | H15: 9.34 | J15: QB13 | K15: 0.6 | L15: 2.78 | M15: 0.2 | N15: 2 | O15: 0.33 | P15: 12 | Q15: 4.00 | S15: QB13 | T15: 0.6 | U15: 2.78 | V15: 0.1 | W15: 4 | X15: 0.17 | Y15: 14 | Z15: 2.34
A16: QB14 | B16: 1.7 | C16: 2.76 | D16: 0.2 | E16: 1 | F16: 0.94 | G16: 28 | H16: 26.28 | J16: QB14 | K16: 1.7 | L16: 2.76 | M16: 0.2 | N16: 1 | O16: 0.94 | P16: 12 | Q16: 11.26 | S16: QB14 | T16: 1.21 | U16: 2.76 | V16: 0.1 | W16: 2 | X16: 0.33 | Y16: 14 | Z16: 4.68
A17: QB15 | B17: 0.4 | C17: 2.5 | D17: 0.2 | E17: 1 | F17: 0.20 | G17: 28 | H17: 5.60 | J17: QB15 | K17: 0.4 | L17: 2.5 | M17: 0.2 | N17: 1 | O17: 0.20 | P17: 12 | Q17: 2.40 | S17: QB15 | T17: 1.6 | U17: 2.76 | V17: 0.1 | W17: 2 | X17: 0.44 | Y17: 14 | Z17: 6.18
A18: QB16 | B18: 1.6 | C18: 2.5 | D18: 0.2 | E18: 1 | F18: 0.80 | G18: 28 | H18: 22.40 | J18: QB16 | K18: 1.6 | L18: 2.5 | M18: 0.2 | N18: 1 | O18: 0.80 | P18: 12 | Q18: 9.60 | S18: QB16 | T18: 3.1 | U18: 2.76 | V18: 0.1 | W18: 2 | X18: 0.86 | Y18: 14 | Z18: 11.98
A19: QB17 | B19: 1.0 | C19: 2.2 | D19: 0.2 | E19: 2 | F19: 0.44 | G19: 28 | H19: 12.32 | J19: QB17 | K19: 1.0 | L19: 2.2 | M19: 0.2 | N19: 2 | O19: 0.44 | P19: 12 | Q19: 5.28 | S19: QB17 | T19: 2.9 | U19: 2.3 | V19: 0.2 | W19: 2 | X19: 1.31 | Y19: 14 | Z19: 18.35
A20: QB18 | B20: 2.3 | C20: 2.8 | D20: 0.2 | E20: 2 | F20: 1.29 | G20: 28 | H20: 36.06 | J20: QB18 | K20: 2.3 | L20: 2.5 | M20: 0.2 | N20: 2 | O20: 1.15 | P20: 12 | Q20: 13.80 | S20: QB18 | T20: 2.7 | U20: 2.5 | V20: 0.2 | W20: 1 | X20: 1.35 | Y20: 14 | Z20: 18.90
A21: QB19 | B21: 2.8 | C21: 2.76 | D21: 0.1 | E21: 2 | F21: 0.77 | G21: 28 | H21: 21.64 | J21: QB19 | K21: 2.8 | L21: 2.76 | M21: 0.1 | N21: 2 | O21: 0.77 | P21: 12 | Q21: 9.27 | S21: QB19 | T21: 3.5 | U21: 2.78 | V21: 0.1 | W21: 2 | X21: 0.97 | Y21: 14 | Z21: 13.62
A22: QB20 | B22: 1.4 | C22: 2.76 | D22: 0.1 | E22: 1 | F22: 0.39 | G22: 28 | H22: 10.82 | J22: QB20 | K22: 1.4 | L22: 2.76 | M22: 0.1 | N22: 1 | O22: 0.39 | P22: 12 | Q22: 4.64 | S22: QB20 | T22: 3.5 | U22: 2.5 | V22: 0.2 | W22: 1 | X22: 1.75 | Y22: 14 | Z22: 24.50
A23: QB21 | B23: 1.25 | C23: 2.4 | D23: 0.1 | E23: 1 | F23: 0.30 | G23: 28 | H23: 8.40 | J23: QB21 | K23: 1.25 | L23: 2.4 | M23: 0.1 | N23: 1 | O23: 0.30 | P23: 12 | Q23: 3.60 | S23: QB21 | T23: 2.6 | U23: 2.5 | V23: 0.2 | W23: 2 | X23: 1.30 | Y23: 14 | Z23: 18.20
A24: QB22 | B24: 1.8 | C24: 2.3 | D24: 0.2 | E24: 1 | F24: 0.83 | G24: 28 | H24: 23.18 | J24: QB22 | K24: 1.8 | L24: 2.3 | M24: 0.2 | N24: 1 | O24: 0.83 | P24: 12 | Q24: 9.94 | S24: 200mm厚板材262.64m3、100mm厚板材：49.61m3
A25: QB23 | B25: 2.7 | C25: 2.5 | D25: 0.2 | E25: 1 | F25: 1.35 | G25: 28 | H25: 37.80 | J25: QB23 | K25: 2.7 | L25: 2.5 | M25: 0.2 | N25: 1 | O25: 1.35 | P25: 12 | Q25: 16.20
A26: QB24 | B26: 2.6 | C26: 2.6 | D26: 0.2 | E26: 1 | F26: 1.35 | G26: 28 | H26: 37.86 | J26: QB24 | K26: 2.6 | L26: 2.6 | M26: 0.2 | N26: 1 | O26: 1.35 | P26: 12 | Q26: 16.22
A27: QB25 | B27: 3.3 | C27: 2.5 | D27: 0.2 | E27: 1 | F27: 1.65 | G27: 28 | H27: 46.20 | J27: QB25 | K27: 3.3 | L27: 2.5 | M27: 0.2 | N27: 1 | O27: 1.65 | P27: 12 | Q27: 19.80
A28: QB26 | B28: 0.6 | C28: 2.78 | D28: 0.1 | E28: 3 | F28: 0.17 | G28: 28 | H28: 4.67 | J28: QB26 | K28: 0.6 | L28: 2.78 | M28: 0.1 | N28: 3 | O28: 0.17 | P28: 12 | Q28: 2.00
A29: QB27 | B29: 1.2 | C29: 2.76 | D29: 0.1 | E29: 1 | F29: 0.33 | G29: 28 | H29: 9.27 | J29: QB27 | K29: 1.2 | L29: 2.76 | M29: 0.1 | N29: 1 | O29: 0.33 | P29: 12 | Q29: 3.97
A30: QB28 | B30: 1.6 | C30: 2.76 | D30: 0.1 | E30: 1 | F30: 0.44 | G30: 28 | H30: 12.36 | J30: QB28 | K30: 1.6 | L30: 2.76 | M30: 0.1 | N30: 1 | O30: 0.44 | P30: 12 | Q30: 5.30
A31: QB29 | B31: 3.1 | C31: 2.76 | D31: 0.1 | E31: 1 | F31: 0.86 | G31: 28 | H31: 23.96 | J31: QB29 | K31: 3.1 | L31: 2.76 | M31: 0.1 | N31: 1 | O31: 0.86 | P31: 12 | Q31: 10.27
A32: QB30 | B32: 2.65 | C32: 2.3 | D32: 0.2 | E32: 1 | F32: 1.22 | G32: 28 | H32: 34.13 | J32: QB30 | K32: 2.65 | L32: 2.3 | M32: 0.2 | N32: 1 | O32: 1.22 | P32: 12 | Q32: 14.63
A33: QB31 | B33: 3.5 | C33: 2.78 | D33: 0.1 | E33: 1 | F33: 0.97 | G33: 28 | H33: 27.24 | J33: QB31 | K33: 3.5 | L33: 2.78 | M33: 0.1 | N33: 1 | O33: 0.97 | P33: 12 | Q33: 11.68
A34: QB32 | B34: 3.5 | C34: 2.78 | D34: 0.1 | E34: 1 | F34: 0.97 | G34: 28 | H34: 27.24 | J34: QB32 | K34: 3.5 | L34: 2.78 | M34: 0.1 | N34: 1 | O34: 0.97 | P34: 12 | Q34: 11.68
A35: QB33 | B35: 2.6 | C35: 2.5 | D35: 0.2 | E35: 1 | F35: 1.30 | G35: 28 | H35: 36.40 | J35: QB33 | K35: 2.6 | L35: 2.5 | M35: 0.2 | N35: 1 | O35: 1.30 | P35: 12 | Q35: 15.60
A36: QB34 | B36: 1.5 | C36: 2.45 | D36: 0.2 | E36: 1 | F36: 0.74 | G36: 28 | H36: 20.58 | J36: QB34 | K36: 1.5 | L36: 2.45 | M36: 0.2 | N36: 1 | O36: 0.74 | P36: 12 | Q36: 8.82
A37: 200mm厚板材：821.66m3、100mm厚板材：145.61m3 | J37: 200mm厚板材350.49m3、100mm厚板材：62.40m3
